bitfinex/quotes_SOLUSD_20241110
["timestamp","ask_amount","ask_price","bid_price","bid_amount"]
[1731276686226,36.07354661,208.83,208.74,36.07354661]
[1731276686427,36.07354661,208.81,208.73,4.7906]
[1731276686629,36.07354661,208.83,208.74,36.07354661]
[1731276686835,36.07354661,208.81,208.73,16.7677]
[1731276687034,4.7881,208.85,208.76,36.07354661]
[1731276687035,36.07354661,208.85,208.76,36.07354661]
[1731276687328,36.07354661,208.9,208.73,16.7677]
[1731276687329,36.07354661,208.83,208.74,36.07354661]
[1731276687556,36.07354661,208.85,208.74,36.07354661]
[1731276687725,36.07354661,208.85,208.76,36.07354661]
[1731276688125,36.07354661,208.87,208.78,36.07354661]
[1731276688344,36.07354661,208.93,208.84,36.07354661]
[1731276688535,36.07354661,208.91,208.82,36.07354661]
[1731276688848,36.07354661,208.87,208.78,36.07354661]
[1731276689252,36.07354661,208.91,208.82,36.07354661]
[1731276689547,36.07354661,208.89,208.8,36.07354661]
[1731276689936,4.8857,208.96,208.77,11.9749]
[1731276689937,36.07354661,208.87,208.78,36.07354661]
[1731276690132,21.94474878,208.97,208.66,24.0619]
[1731276690133,36.07354661,208.79,208.66,24.0619]
[1731276690359,36.07354661,208.81,208.72,36.07354661]
[1731276690649,36.07354661,208.85,208.74,36.07354661]
[1731276690857,36.07354661,208.83,208.74,36.07354661]
[1731276691347,36.07354661,208.9,208.7,48.25204661]
[1731276691348,36.07354661,208.85,208.76,36.07354661]
[1731276692355,36.07354661,208.85,208.77,4.7899]
[1731276692735,40.86174661,208.85,208.76,36.07354661]
[1731276693033,36.07354661,208.83,208.75,11.9756]
[1731276693950,36.07354661,208.83,208.75,16.766]
[1731276694250,36.07354661,208.83,208.75,11.9756]
[1731276694251,36.07354661,208.81,208.75,11.9756]
[1731276695029,36.07354661,208.83,208.75,11.9756]
[1731276695228,76.5722,208.98,208.75,11.9756]
[1731276695229,36.07354661,208.89,208.8,36.07354661]
[1731276695447,36.07354661,208.91,208.82,36.07354661]
[1731276696038,36.07354661,208.95,208.86,36.07354661]
[1731276696455,36.07354661,208.93,208.87,16.7567]
[1731276696751,16.5717,208.97,208.87,16.7567]
[1731276696752,52.64524661,208.97,208.88,36.07354661]
[1731276696947,36.07354661,208.93,208.87,11.9691]
[1731276697837,36.07354661,208.92,208.87,11.9691]
[1731276698951,36.07354661,208.96,208.89,36.07354661]
[1731276699155,36.07354661,208.96,208.87,11.9691]
[1731276699156,36.07354661,208.96,208.87,48.04264661]
[1731276699643,36.07354661,208.94,208.87,11.9691]
[1731276700357,36.07354661,208.96,208.87,48.04264661]
[1731276700542,36.07354661,208.98,208.87,11.9691]
[1731276700748,36.07354661,209.02,208.93,36.07354661]
[1731276701258,36.07354661,209.0,208.91,36.07354661]
[1731276701441,36.07354661,208.98,208.89,36.07354661]
[1731276702343,36.07354661,208.98,208.9,4.7869]
[1731276702544,40.85874661,208.98,208.9,4.7869]
[1731276703256,23.1991,209.04,208.95,36.07354661]
[1731276703257,36.07354661,209.02,208.95,36.07354661]
[1731276703441,30.0,208.96,208.93,36.07354661]
[1731276703637,30.0,208.96,208.91,36.07354661]
[1731276703844,36.07354661,209.0,208.91,36.07354661]
[1731276704241,36.07354661,209.0,208.82,0.2]
[1731276704242,36.07354661,208.98,208.89,36.07354661]
[1731276706369,36.07354661,209.1,209.03,36.07354661]
[1731276706659,36.07354661,209.1,208.97,0.1]
[1731276706660,36.07354661,209.1,209.01,36.07354661]
[1731276706959,36.07354661,209.08,208.99,36.07354661]
[1731276707170,36.07354661,209.08,209.01,36.07354661]
[1731276707366,36.07354661,209.1,209.01,36.07354661]
[1731276707687,15.0543,209.17,209.08,36.07354661]
[1731276708140,36.07354661,209.14,209.04,36.07354661]
[1731276708660,36.07354661,209.12,209.04,36.07354661]
[1731276709556,36.07354661,209.12,209.04,40.85714661]
[1731276709756,36.07354661,209.12,209.04,4.7836]
[1731276710339,36.07354661,209.12,209.04,40.85714661]
[1731276710539,36.07354661,209.12,209.04,52.81654661]
[1731276710854,36.07354661,209.1,209.02,40.85774661]
[1731276711066,36.07354661,209.08,209.0,40.85804661]
[1731276711357,36.07354661,209.08,209.0,52.81974661]
[1731276711559,36.07354661,209.08,209.0,16.7462]
[1731276712372,40.85644661,209.08,209.0,11.9617]
[1731276712541,36.07354661,209.06,209.0,11.9617]
[1731276713666,40.85684661,209.06,209.0,11.9617]
[1731276714650,40.85684661,209.06,208.96,52.82294661]
[1731276714947,40.85684661,209.06,208.98,36.07354661]
[1731276715650,40.85684661,209.06,208.98,4.7851]
[1731276716563,36.07354661,209.06,208.98,52.82144661]
[1731276716964,36.07354661,209.04,208.98,11.9628]
[1731276717150,40.85694661,209.06,208.98,16.7479]
[1731276717541,36.07354661,209.04,208.98,16.7479]
[1731276717740,36.07354661,209.0,208.93,22.8832]
[1731276718053,36.07354661,209.06,208.98,36.07354661]
[1731276718362,36.07354661,209.04,208.96,36.07354661]
[1731276719647,36.07354661,209.06,208.98,36.07354661]
[1731276720757,36.07354661,209.08,209.0,36.07354661]
[1731276720958,11.9535,209.15,209.0,36.07354661]
[1731276720959,36.07354661,209.1,209.0,36.07354661]
[1731276721260,36.07354661,209.06,208.99,16.7471]
[1731276721644,4.782,209.12,208.93,6.1318]
[1731276721645,36.07354661,209.02,208.95,4.7856]
[1731276721842,36.07354661,209.0,208.94,11.9646]
[1731276722373,36.07354661,208.98,208.91,4.7865]
[1731276722674,15.0956,209.05,208.91,4.7865]
[1731276722675,36.07354661,209.0,208.92,36.07354661]
[1731276722852,36.07354661,209.02,208.94,36.07354661]
[1731276723362,36.07354661,209.02,208.92,36.07354661]
[1731276724371,4.7844,209.01,208.93,4.7862]
[1731276724957,36.07354661,209.0,208.93,4.7862]
[1731276725154,36.07354661,209.02,208.93,36.07354661]
[1731276725349,36.07354661,209.02,208.95,36.07354661]
[1731276726069,36.07354661,209.02,208.93,36.07354661]
[1731276726263,36.07354661,209.02,208.94,4.786]
[1731276726955,40.85774661,209.02,208.94,4.786]
[1731276727460,40.85774661,209.02,208.94,16.7511]
[1731276727962,48.13004661,209.1,208.94,16.7511]
[1731276727963,40.85644661,209.08,209.01,36.07354661]
[1731276728176,4.7827,209.09,209.01,36.07354661]
[1731276728358,52.03044661,209.1,209.02,4.7842]
[1731276728677,52.03044661,209.1,209.02,16.7447]
[1731276729162,36.07354661,209.14,209.05,36.07354661]
[1731276729367,36.07354661,209.14,209.07,36.07354661]
[1731276729577,35.07354661,209.14,209.07,36.07354661]
[1731276730074,36.07354661,209.2,209.13,36.07354661]
[1731276730366,36.07354661,209.24,209.15,36.07354661]
[1731276730579,36.07354661,209.24,209.17,36.07354661]
[1731276731260,36.07354661,209.24,209.15,36.07354661]
[1731276731568,36.07354661,209.22,209.14,16.7351]
[1731276732158,36.07354661,209.2,209.14,11.9537]
[1731276732558,40.85374661,209.2,209.11,36.07354661]
[1731276732757,4.7802,209.2,209.11,36.07354661]
[1731276732960,36.07354661,209.2,209.11,36.07354661]
[1731276733269,36.07354661,209.2,209.13,36.07354661]
[1731276734572,36.07354661,209.18,209.1,4.7822]
[1731276734871,36.07354661,209.2,209.13,36.07354661]
[1731276735071,36.07354661,209.2,209.1,11.956]
[1731276735072,36.07354661,209.15,209.1,11.956]
[1731276735257,36.07354661,209.15,209.02,29.9228]
[1731276735258,36.07354661,209.11,209.05,11.9586]
[1731276735461,6.3587,209.19,209.05,11.9586]
[1731276735462,36.07354661,209.15,209.07,36.07354661]
[1731276735875,36.07354661,209.15,209.05,48.03214661]
[1731276736177,36.07354661,209.13,209.05,48.03214661]
[1731276736774,36.07354661,209.13,209.05,52.81564661]
[1731276737159,40.85484661,209.15,209.07,36.07354661]
[1731276737369,36.07354661,209.19,209.09,36.07354661]
[1731276737669,36.07354661,209.23,209.15,36.07354661]
[1731276738283,15.9569,209.28,209.21,36.07354661]
[1731276738459,36.07354661,209.27,209.19,36.07354661]
[1731276738871,36.07354661,209.27,209.2,4.7801]
[1731276740963,40.85214661,209.27,209.2,4.7801]
[1731276741656,40.85214661,209.27,209.19,48.02424661]
[1731276741972,40.85214661,209.27,209.19,52.80454661]
[1731276742655,36.07354661,209.23,209.15,36.07354661]
[1731276742856,36.07354661,209.23,209.15,4.7811]
[1731276743180,36.07354661,209.23,209.14,11.9534]
[1731276743181,4.7796,209.22,209.14,16.7348]
[1731276743372,4.7796,209.22,209.11,36.07354661]
[1731276743373,36.07354661,209.19,209.11,36.07354661]
[1731276743672,36.07354661,209.25,209.17,36.07354661]
[1731276744470,36.07354661,209.21,209.13,36.07354661]
[1731276744669,36.07354661,209.23,209.15,36.07354661]
[1731276745054,36.07354661,209.23,209.16,4.781]
[1731276745454,40.85304661,209.23,209.15,36.07354661]
[1731276745754,36.07354661,209.21,209.14,36.07354661]
[1731276745956,36.07354661,209.22,209.15,36.07354661]
[1731276746356,36.07354661,209.2,209.12,16.7367]
[1731276746570,36.07354661,209.18,209.12,16.7367]
[1731276746760,36.07354661,209.2,209.12,52.81024661]
[1731276748066,36.07354661,209.25,209.19,36.07354661]
[1731276748366,36.07354661,209.25,209.12,16.7367]
[1731276748367,36.07354661,209.23,209.15,36.07354661]
[1731276748570,36.07354661,209.23,209.16,36.07354661]
[1731276748755,36.07354661,209.24,209.16,36.07354661]
[1731276749259,36.07354661,209.24,209.17,36.07354661]
[1731276749452,36.07354661,209.26,209.18,36.07354661]
[1731276749678,36.07354661,209.27,209.13,0.1]
[1731276749857,36.07354661,209.25,209.17,36.07354661]
[1731276750180,36.07354661,209.26,209.18,36.07354661]
[1731276750360,36.07354661,209.25,209.18,36.07354661]
[1731276750679,36.07354661,209.25,209.19,4.7803]
[1731276750975,36.07354661,209.27,209.2,36.07354661]
[1731276752166,36.07354661,209.26,209.21,16.7295]
[1731276752371,6.6359,209.31,209.21,16.7295]
[1731276752372,36.07354661,209.27,209.21,11.9497]
[1731276752675,36.07354661,209.27,209.21,16.7295]
[1731276753258,36.07354661,209.28,209.21,52.80304661]
[1731276753662,36.07354661,209.27,209.21,16.7295]
[1731276754459,20.7112,209.32,209.21,16.7295]
[1731276754460,36.07354661,209.29,209.21,52.80304661]
[1731276754660,36.07354661,209.28,209.21,52.80304661]
[1731276754979,36.07354661,209.26,209.21,16.7295]
[1731276755275,36.07354661,209.29,209.21,52.80304661]
[1731276755665,36.07354661,209.28,209.21,16.7295]
[1731276755870,33.57354661,209.28,209.21,16.7295]
[1731276756380,36.07354661,209.29,209.21,52.80304661]
[1731276757066,36.07354661,209.24,209.19,4.7802]
[1731276757473,36.07354661,209.23,209.17,4.7806]
[1731276757681,36.07354661,209.2,209.16,11.9523]
[1731276757886,36.07354661,209.22,209.16,11.9523]
[1731276758060,36.07354661,209.21,209.16,16.7333]
[1731276758558,36.07354661,209.24,209.17,36.07354661]
[1731276758758,36.07354661,209.25,209.18,36.07354661]
[1731276758981,36.07354661,209.26,209.19,36.07354661]
[1731276759761,36.07354661,209.26,209.17,36.07354661]
[1731276760082,36.07354661,209.2,209.16,11.9523]
[1731276760258,36.07354661,209.22,209.16,11.9523]
[1731276761185,36.07354661,209.2,209.13,40.85514661]
[1731276761568,36.07354661,209.22,209.13,52.80934661]
[1731276762076,36.07354661,209.2,209.13,16.7358]
[1731276763277,36.07354661,209.2,209.13,52.80934661]
[1731276763866,36.07354661,209.22,209.13,52.80934661]
[1731276764365,36.07354661,209.2,209.13,52.80934661]
[1731276764776,36.07354661,209.14,209.08,11.9568]
[1731276764980,36.07354661,209.14,209.08,16.7396]
[1731276765293,36.07354661,209.12,209.04,6.5405]
[1731276765472,36.07354661,209.1,209.04,23.2834]
[1731276765781,36.07354661,209.1,209.04,16.7429]
[1731276766359,36.07354661,209.14,209.05,36.07354661]
[1731276766563,36.07354661,209.14,209.06,16.7415]
[1731276767066,36.07354661,209.12,209.06,16.7415]
[1731276767666,36.07354661,209.14,209.06,16.7415]
[1731276768182,36.07354661,209.12,209.06,16.7415]
[1731276769382,36.07354661,209.1,209.06,11.9582]
[1731276769966,36.07354661,209.1,209.04,4.7837]
[1731276770167,36.07354661,209.1,209.02,4.784]
[1731276770380,36.07354661,209.08,209.02,4.784]
[1731276771466,36.07354661,209.08,209.02,16.7445]
[1731276772184,36.07354661,209.1,209.03,36.07354661]
[1731276772571,36.07354661,209.1,209.02,16.7445]
[1731276772767,4.782,209.12,209.02,11.9605]
[1731276772768,36.07354661,209.08,209.02,11.9605]
[1731276773167,36.07354661,209.06,209.02,11.9605]
[1731276773492,36.07354661,209.06,208.99,36.07354661]
[1731276774370,6.2425,209.14,209.01,36.07354661]
[1731276774371,36.07354661,209.1,209.01,36.07354661]
[1731276774782,36.07354661,209.08,209.01,36.07354661]
[1731276775483,36.07354661,209.08,208.99,36.07354661]
[1731276775674,36.07354661,209.08,208.99,52.82064661]
[1731276776083,40.85644661,209.08,208.99,52.82064661]
[1731276776269,36.07354661,209.06,208.99,52.82064661]
[1731276777163,4.7829,209.08,208.99,52.82064661]
[1731276777164,36.07354661,209.04,208.99,16.7471]
[1731276777673,36.07354661,209.04,208.99,11.9622]
[1731276779483,36.07354661,209.02,208.96,4.7856]
[1731276780184,36.07354661,209.06,208.99,36.07354661]
[1731276780793,40.85684661,209.06,208.99,36.07354661]
[1731276781600,40.85684661,209.06,208.97,36.07354661]
[1731276782100,36.07354661,209.02,208.93,47.02334661]
[1731276782390,36.07354661,209.02,208.95,36.07354661]
[1731276782989,40.85784661,209.02,208.93,58.98904661]
[1731276783581,36.07354661,208.98,208.93,16.7517]
[1731276783774,36.07354661,209.0,208.93,52.82524661]
[1731276784697,36.07354661,209.02,208.93,52.82524661]
[1731276785194,36.07354661,209.0,208.93,52.82524661]
[1731276785399,36.07354661,208.98,208.93,16.7517]
[1731276785598,36.07354661,209.0,208.93,16.7517]
[1731276786595,36.07354661,209.02,208.95,36.07354661]
[1731276787704,15.8353,209.09,208.99,36.07354661]
[1731276787886,36.07354661,209.1,209.03,36.07354661]
[1731276788287,36.07354661,209.12,209.05,36.07354661]
[1731276788801,51.89754661,209.14,209.06,16.7415]
[1731276789580,36.07354661,209.12,209.06,16.7415]
[1731276790195,36.07354661,209.08,209.01,48.03454661]
[1731276790601,36.07354661,209.1,209.03,36.07354661]
[1731276790900,51.89754661,209.14,209.05,36.07354661]
[1731276792002,36.07354661,209.12,209.05,36.07354661]
[1731276792207,36.07354661,209.12,209.04,16.7431]
[1731276793305,36.07354661,209.12,209.05,36.07354661]
[1731276793491,36.07354661,209.16,209.07,36.07354661]
[1731276793890,36.07354661,209.14,209.07,36.07354661]
[1731276794091,36.07354661,209.12,209.04,16.7431]
[1731276795100,36.07354661,209.14,209.07,36.07354661]
[1731276795406,36.07354661,209.21,209.13,36.07354661]
[1731276795587,36.07354661,209.19,209.11,36.07354661]
[1731276795783,36.07354661,209.19,209.1,6.5874]
[1731276795988,36.07354661,209.17,209.1,6.5874]
[1731276796900,36.07354661,209.17,209.11,4.7821]
[1731276797709,4.7803,209.19,209.11,4.7821]
[1731276797710,40.85384661,209.19,209.11,4.7821]
[1731276798090,36.07354661,209.19,209.11,52.81104661]
[1731276798904,36.07354661,209.21,209.11,52.81104661]
[1731276799098,36.07354661,209.21,209.13,36.07354661]
[1731276799410,36.07354661,209.23,209.13,36.07354661]
[1731276799709,4.7789,209.25,209.13,36.07354661]
[1731276799710,36.07354661,209.21,209.13,36.07354661]
[1731276800406,36.07354661,209.21,209.14,4.7814]
[1731276801809,36.07354661,209.21,209.14,16.7351]
[1731276801994,36.07354661,209.23,209.14,16.7351]
[1731276802200,16.2213,209.28,209.15,36.07354661]
[1731276802508,36.07354661,209.26,209.17,36.07354661]
[1731276803888,36.07354661,209.26,209.18,16.7319]
[1731276804405,36.07354661,209.23,209.18,11.9514]
[1731276804612,36.07354661,209.21,209.15,4.781]
[1731276805316,36.07354661,209.23,209.15,52.80764661]
[1731276806311,36.07354661,209.2,209.15,11.9531]
[1731276807293,36.07354661,209.2,209.15,16.7343]
[1731276807502,36.07354661,209.22,209.15,16.7343]
[1731276807699,36.07354661,209.24,209.15,52.80784661]
[1731276808316,36.07354661,209.22,209.15,52.80784661]
[1731276809509,36.07354661,209.2,209.15,16.7343]
[1731276810595,36.07354661,209.18,209.13,4.7815]
[1731276810910,36.07354661,209.18,209.11,16.7372]
[1731276811314,36.07354661,209.16,209.11,11.9553]
[1731276811510,36.07354661,209.16,209.11,16.7374]
[1731276811713,36.07354661,209.16,209.11,11.9553]
[1731276812423,36.07354661,209.16,209.11,16.7374]
[1731276812814,36.07354661,209.18,209.11,16.7374]
[1731276813250,6.23222361,209.18,209.11,16.7374]
[1731276813820,36.07354661,209.2,209.12,36.07354661]
[1731276814696,17.44153317,209.27,209.11,11.9553]
[1731276814697,36.07354661,209.18,209.11,11.9553]
[1731276814895,36.07354661,209.16,209.11,11.9553]
[1731276815598,36.07354661,209.2,209.12,36.07354661]
[1731276815799,16.3213,209.28,209.14,36.07354661]
[1731276815800,36.07354661,209.22,209.14,36.07354661]
[1731276816113,36.07354661,209.22,209.15,4.7812]
[1731276816494,36.07354661,209.2,209.15,4.7812]
[1731276817202,36.07354661,209.22,209.15,16.7343]
[1731276819704,36.07354661,209.2,209.15,16.7343]
[1731276819904,36.07354661,209.21,209.15,16.7343]
[1731276820106,36.07354661,209.22,209.15,16.7343]
[1731276820514,36.07354661,209.21,209.15,16.7343]
[1731276821320,36.07354661,209.22,209.15,36.07354661]
[1731276821616,36.07354661,209.21,209.14,36.07354661]
[1731276822012,4.7795,209.23,209.08,40.6541]
[1731276822013,36.07354661,209.22,209.15,36.07354661]
[1731276822210,36.07354661,209.21,209.14,36.07354661]
[1731276822525,36.07354661,209.21,209.13,52.80874661]
[1731276822700,36.07354661,209.21,209.14,36.07354661]
[1731276823219,36.07354661,209.22,209.14,36.07354661]
[1731276823424,36.07354661,209.22,209.15,4.7812]
[1731276824327,36.07354661,209.22,209.15,16.7343]
[1731276825421,36.07354661,209.26,209.18,36.07354661]
[1731276826424,35.57354661,209.26,209.18,36.07354661]
[1731276826722,36.07354661,209.22,209.15,16.7342]
[1731276828720,36.07354661,209.2,209.15,16.7342]
[1731276829319,36.07354661,209.18,209.11,11.9553]
[1731276829522,36.07354661,209.14,209.06,52.81434661]
[1731276829727,36.07354661,209.1,209.04,4.7837]
[1731276830021,36.07354661,209.07,209.01,11.9606]
[1731276830230,4.7825,209.1,209.01,16.745]
[1731276830406,36.07354661,209.05,209.01,11.9606]
[1731276830610,36.07354661,209.06,209.01,11.9606]
[1731276830815,36.07354661,209.06,208.99,36.07354661]
[1731276831014,36.07354661,209.05,208.97,40.85874661]
[1731276831210,36.07354661,209.09,208.97,16.7486]
[1731276831413,4.7812,209.15,208.97,16.8486]
[1731276831615,20.0,209.16,208.99,0.1]
[1731276831808,0.1,209.22,208.99,0.1]
[1731276831809,5.30616773,209.21,209.02,15.9671]
[1731276832009,5.30616773,209.21,209.03,6.6486]
[1731276832222,4.7801,209.2,209.04,16.7431]
[1731276832414,36.07354661,209.18,209.1,36.07354661]
[1731276833132,36.07354661,209.18,209.04,16.7431]
[1731276833133,36.07354661,209.2,209.12,36.07354661]
[1731276834231,36.07354661,209.2,209.13,4.7817]
[1731276835028,36.07354661,209.22,209.13,16.7359]
[1731276836316,36.07354661,209.2,209.13,16.7359]
[1731276836917,36.07354661,209.18,209.13,11.9542]
[1731276837120,36.07354661,209.18,209.11,4.782]
[1731276837121,4.7797,209.22,209.15,36.07354661]
[1731276837731,4.7791,209.25,209.17,36.07354661]
[1731276837914,4.7791,209.25,209.15,36.07354661]
[1731276838415,4.7791,209.25,209.16,4.781]
[1731276838827,4.7791,209.25,209.17,36.07354661]
[1731276839633,36.07354661,209.26,209.18,16.7319]
[1731276839837,36.07354661,209.3,209.21,36.07354661]
[1731276840136,36.07354661,209.36,209.27,36.07354661]
[1731276840335,3.56778203,209.35,209.29,36.07354661]
[1731276840539,36.07354661,209.36,209.29,36.07354661]
[1731276840832,36.07354661,209.36,209.27,36.07354661]
[1731276841013,36.07354661,209.36,209.29,36.07354661]
[1731276841212,36.07354661,209.36,209.27,36.07354661]
[1731276841414,3.56763076,209.35,209.27,36.07354661]
[1731276841614,40.85014661,209.36,209.28,4.7782]
[1731276841821,36.07354661,209.36,209.29,36.07354661]
[1731276842017,36.07354661,209.36,209.28,16.7239]
[1731276842425,51.22307209,209.38,209.29,36.07354661]
[1731276842836,15.14952548,209.38,209.31,36.07354661]
[1731276843011,15.14952548,209.38,209.35,36.07354661]
[1731276843838,15.14952548,209.38,209.37,36.07354661]
[1731276844230,15.14952548,209.38,209.36,16.7175]
[1731276846434,15.14952548,209.38,209.33,4.7769]
[1731276846639,51.22307209,209.38,209.31,16.7211]
[1731276846949,36.07354661,209.34,209.27,36.07354661]
[1731276847238,36.07354661,209.34,209.26,16.7252]
[1731276848418,36.07354661,209.32,209.26,16.7252]
[1731276849248,36.07354661,209.3,209.21,48.02284661]
[1731276849824,36.07354661,209.3,209.22,16.7286]
[1731276850140,40.85194661,209.28,209.22,11.9491]
[1731276850344,40.85144661,209.3,209.22,11.9491]
[1731276850520,36.07354661,209.28,209.19,36.07354661]
[1731276850723,36.07354661,209.26,209.18,4.7804]
[1731276853343,36.07354661,209.32,209.23,36.07354661]
[1731276853553,36.07354661,209.3,209.21,36.07354661]
[1731276853848,36.07354661,209.26,209.18,16.7318]
[1731276854246,36.07354661,209.26,209.18,11.9514]
[1731276854543,36.07354661,209.26,209.18,16.7319]
[1731276855933,40.85234661,209.26,209.18,16.7319]
[1731276856548,36.07354661,209.22,209.14,4.7813]
[1731276856930,36.07354661,209.24,209.15,36.07354661]
[1731276857237,36.07354661,209.2,209.14,16.735]
[1731276859148,36.07354661,209.22,209.14,16.735]
[1731276859342,36.07354661,209.22,209.15,36.07354661]
[1731276859538,36.07354661,209.26,209.17,36.07354661]
[1731276859755,36.07354661,209.26,209.19,36.07354661]
[1731276860050,36.07354661,209.24,209.17,36.07354661]
[1731276860232,36.07354661,209.26,209.19,36.07354661]
[1731276860430,36.07354661,209.28,209.19,36.07354661]
[1731276861431,36.07354661,209.28,209.2,4.7801]
[1731276862341,36.07354661,209.28,209.2,16.7303]
[1731276862654,36.07354661,209.3,209.22,4.7796]
[1731276863453,36.07354661,209.28,209.22,16.7287]
[1731276864050,36.07354661,209.26,209.18,16.7319]
[1731276864243,36.07354661,209.24,209.18,16.7319]
[1731276865768,36.07354661,209.28,209.19,36.07354661]
[1731276865948,36.07354661,209.3,209.21,36.07354661]
[1731276866447,36.07354661,209.3,209.23,36.07354661]
[1731276866647,36.07354661,209.32,209.23,36.07354661]
[1731276866851,36.07354661,209.32,209.25,36.07354661]
[1731276867460,36.07354661,209.32,209.26,4.7787]
[1731276867754,16.5401,209.33,209.26,4.7787]
[1731276868049,36.07354661,209.32,209.26,11.9468]
[1731276868441,36.07354661,209.34,209.26,52.79904661]
[1731276869262,36.07354661,209.36,209.28,36.07354661]
[1731276869460,36.07354661,209.34,209.26,52.79904661]
[1731276870338,36.07354661,209.36,209.28,36.07354661]
[1731276870541,36.07354661,209.36,209.29,16.7231]
[1731276871841,51.22307209,209.38,209.29,16.7231]
[1731276872163,51.22307209,209.38,209.3,36.07354661]
[1731276872540,51.22307209,209.38,209.29,16.7231]
[1731276872541,15.14952548,209.38,209.32,36.07354661]
[1731276873254,15.14952548,209.38,209.34,36.07354661]
[1731276873458,15.14952548,209.38,209.36,36.07354661]
[1731276874570,15.14952548,209.38,209.37,4.7762]
[1731276877155,15.14952548,209.38,209.36,11.941]
[1731276877542,15.14952548,209.38,209.32,36.07354661]
[1731276877745,15.14952548,209.38,209.31,11.9434]
[1731276878156,15.14952548,209.38,209.3,36.07354661]
[1731276878362,15.14952548,209.38,209.32,48.01694661]
[1731276879252,15.14952548,209.38,209.32,11.9434]
[1731276881964,72.66147209,209.38,209.29,4.7779]
[1731276882349,36.07354661,209.36,209.28,48.01914661]
[1731276882556,36.07354661,209.36,209.28,52.79734661]
[1731276884463,36.07354661,209.36,209.26,36.07354661]
[1731276884464,36.07354661,209.34,209.26,36.07354661]
[1731276884669,36.07354661,209.34,209.26,40.85214661]
[1731276885166,10.9951,209.37,209.28,36.07354661]
[1731276885754,10.9951,209.37,209.29,4.778]
[1731276886079,10.9951,209.37,209.29,16.7231]
[1731276887070,67.88547209,209.38,209.3,36.07354661]
[1731276887071,31.81192548,209.38,209.3,36.07354661]
[1731276888249,36.07354661,209.34,209.26,36.07354661]
[1731276889769,36.58802548,209.38,209.22,52.80224661]
[1731276889770,36.07354661,209.31,209.22,52.80224661]
[1731276889970,36.07354661,209.29,209.22,52.80224661]
[1731276890144,6.5955,209.2,209.06,11.9582]
[1731276890350,36.07354661,209.11,209.06,11.9582]
[1731276890548,36.07354661,209.15,209.07,36.07354661]
[1731276890754,36.07354661,209.17,209.09,36.07354661]
[1731276890947,36.07354661,209.19,209.11,36.07354661]
[1731276891155,36.07354661,209.19,209.09,36.07354661]
[1731276891366,36.07354661,209.17,209.09,36.07354661]
[1731276892269,36.07354661,209.19,209.1,16.7384]
[1731276892449,36.07354661,209.17,209.1,16.7384]
[1731276896965,36.07354661,209.17,209.1,11.956]
[1731276899164,36.07354661,209.17,209.1,16.7384]
[1731276900179,36.07354661,209.13,209.08,4.7827]
[1731276901080,36.07354661,209.11,209.06,16.7415]
[1731276901285,36.07354661,209.11,209.06,11.9582]
[1731276902181,36.07354661,209.09,209.02,4.7841]
[1731276902688,36.07354661,209.09,209.02,16.7446]
[1731276903771,36.07354661,209.13,209.07,36.07354661]
[1731276903956,36.07354661,209.15,209.07,36.07354661]
[1731276904378,36.07354661,209.17,209.09,36.07354661]
[1731276904577,36.07354661,209.19,209.11,36.07354661]
[1731276905171,36.07354661,209.19,209.12,16.7367]
[1731276905678,36.07354661,209.21,209.15,36.07354661]
[1731276905881,36.07354661,209.25,209.19,36.07354661]
[1731276906059,36.07354661,209.25,209.17,36.07354661]
[1731276906260,36.07354661,209.19,209.12,52.81024661]
[1731276906484,36.07354661,209.23,209.14,36.07354661]
[1731276906660,36.07354661,209.26,209.19,36.07354661]
[1731276906868,15.5882,209.28,209.19,36.07354661]
[1731276907187,36.07354661,209.29,209.21,36.07354661]
[1731276907361,36.07354661,209.27,209.22,16.7287]
[1731276907561,52.06684661,209.33,209.25,36.07354661]
[1731276907886,36.07354661,209.35,209.27,36.07354661]
[1731276908289,36.07354661,209.37,209.29,36.07354661]
[1731276908782,36.07354661,209.37,209.3,36.07354661]
[1731276909287,36.07354661,209.37,209.23,20.1]
[1731276909288,36.07354661,209.33,209.27,11.9461]
[1731276909466,36.07354661,209.31,209.27,11.9461]
[1731276910885,36.07354661,209.33,209.27,11.9461]
[1731276911065,36.07354661,209.35,209.28,36.07354661]
[1731276911265,36.07354661,209.37,209.3,36.07354661]
[1731276911569,15.14952548,209.38,209.3,36.07354661]
[1731276912381,15.14952548,209.38,209.31,16.7216]
[1731276914863,15.14952548,209.38,209.32,36.07354661]
[1731276915386,15.14952548,209.38,209.36,36.07354661]
[1731276915765,15.14952548,209.38,209.34,36.07354661]
[1731276916259,15.14952548,209.38,209.36,36.07354661]
[1731276916659,15.14952548,209.38,209.37,4.7762]
[1731276916882,15.14952548,209.38,209.37,28.553084]